bitfinex-derivatives/quotes_ETHF0:USTF0_20250326
["timestamp","ask_amount","ask_price","bid_price","bid_amount"]
[1742999347163,4.20066,2014.0,2013.8,4.07]
[1742999347355,1.3698,2013.9,2013.8,5.06292]
[1742999347552,1.3698,2013.9,2013.8,45.86292]
[1742999348059,1.0439,2014.3,2013.8,45.86292]
[1742999348266,1.3698,2014.2,2014.1,0.99274]
[1742999349261,1.3698,2014.2,2013.9,7.01466]
[1742999349262,4.211,2014.8,2014.0,4.96415]
[1742999349561,4.211,2014.8,2014.2,2.48182]
[1742999349562,0.99254,2014.6,2014.2,2.48182]
[1742999349868,0.99263,2014.4,2014.3,4.07]
[1742999350261,1.2925,2014.4,2014.3,0.99268]
[1742999350759,5.20345,2014.8,2014.6,0.9925]
[1742999350968,1.2925,2014.7,2014.6,5.0625]
[1742999351565,20.1260307,2015.4,2014.6,6.57]
[1742999351766,20.1260307,2015.4,2015.0,5.68856]
[1742999351970,20.1260307,2015.4,2014.7,3.3371]
[1742999351971,0.99223,2015.2,2015.1,4.07]
[1742999352369,2.28473,2015.2,2015.1,4.07]
[1742999352568,2.28473,2015.2,2014.3,7.2778]
[1742999352569,2.48072,2015.1,2014.3,7.2778]
[1742999352867,22.1458307,2015.4,2014.3,8.6115]
[1742999352868,5.68878,2014.9,2014.3,8.6115]
[1742999353071,0.99253,2014.6,2014.5,0.9999838]
[1742999353261,0.99253,2014.6,2014.5,0.0074438]
[1742999353456,4.20033,2014.6,2014.5,0.0074438]
[1742999355967,3.4423,2014.8,2014.5,0.0074438]
[1742999356167,0.99249,2014.7,2014.6,0.99249]
[1742999356470,1.416,2014.7,2014.6,0.99249]
[1742999356668,2.40848,2014.7,2014.6,0.99249]
[1742999356866,1.416,2014.7,2014.6,0.99249]
[1742999357662,2.40848,2014.7,2014.6,0.99249]
[1742999358071,0.99253,2014.6,2014.5,0.9999838]
[1742999358272,5.61633,2014.6,2014.5,0.9999838]
[1742999358767,5.61633,2014.6,2014.5,1.0000238]
[1742999360171,5.61633,2014.6,2014.5,0.0074438]
[1742999362473,5.61633,2014.6,2014.5,1.0000238]
[1742999362777,4.6238,2014.6,2014.5,1.0000238]
[1742999363165,1.416,2014.6,2014.5,1.0000238]
[1742999364267,0.99232,2015.1,2014.7,2.48119]
[1742999364473,0.99232,2015.1,2015.0,0.99232]
[1742999364872,1.99867,2015.2,2015.1,0.99228]
[1742999365072,3.2078,2015.3,2014.8,9.75788]
[1742999365073,3.2078,2015.3,2014.9,2.48096]
[1742999365273,0.99225,2015.2,2015.1,0.99224]
[1742999365471,1.4198,2015.2,2015.1,0.99224]
[1742999365671,1.4198,2015.2,2015.1,4.20004]
[1742999366176,1.4198,2015.2,2015.1,0.99224]
[1742999366676,2.41203,2015.2,2015.1,0.99224]
[1742999366871,1.4198,2015.2,2015.1,0.99224]
[1742999367672,0.0074438,2015.4,2015.3,0.99218]
[1742999367867,0.0074438,2015.4,2015.3,5.06118]
[1742999368474,0.0074438,2015.4,2015.3,7.56118]
[1742999368475,3.8e-06,2015.4,2015.3,7.56118]
[1742999368676,4.2418,2016.2,2015.5,2.48022]
[1742999368881,4.19979,2015.7,2015.6,4.069]
[1742999369178,0.99199,2015.7,2015.6,44.869]
[1742999369382,4.19978,2015.8,2015.6,45.86099]
[1742999369572,1.3824,2015.7,2015.6,45.86099]
[1742999369774,1.3824,2015.7,2015.6,5.06099]
[1742999369972,2.37439,2015.7,2015.6,5.06099]
[1742999370172,2.37439,2015.7,2015.6,4.069]
[1742999370375,2.37439,2015.7,2015.6,5.06104]
[1742999370571,0.99204,2015.6,2015.5,40.8074438]
[1742999370771,2.37444,2015.6,2015.5,4.0754438]
[1742999371685,2.37444,2015.6,2015.5,5.0675338]
[1742999372070,2.37444,2015.6,2015.5,4.0754438]
[1742999372272,2.37444,2015.6,2015.5,5.0675338]
[1742999372983,0.99223,2015.2,2015.1,0.99224]
[1742999373280,0.99223,2015.2,2015.1,5.06024]
[1742999373579,0.99223,2015.2,2015.1,0.99224]
[1742999373784,0.99223,2015.3,2015.2,0.99221]
[1742999373982,2.39373,2015.3,2015.2,0.99221]
[1742999374375,0.99223,2015.2,2015.1,5.05925]
[1742999374573,2.39373,2015.2,2015.1,5.05925]
[1742999374777,2.39373,2015.2,2015.1,4.067]
[1742999375377,2.39373,2015.2,2015.1,5.05928]
[1742999375976,2.39373,2015.2,2015.1,4.067]
[1742999376176,2.39373,2015.2,2015.1,5.05928]
[1742999376486,1.4015,2015.2,2015.1,5.05928]
[1742999376686,2.39373,2015.2,2015.1,5.05928]
[1742999376886,2.39373,2015.2,2015.1,4.067]
[1742999377388,2.39373,2015.2,2015.1,5.05928]
[1742999378481,2.39373,2015.2,2015.1,5.4]
[1742999379279,1.4015,2015.2,2015.1,5.4]
[1742999379479,2.39373,2015.2,2015.1,5.4]
[1742999379689,2.39373,2015.2,2015.1,4.067]
[1742999379889,0.99228,2015.1,2015.0,0.0074438]
[1742999380089,0.99238,2014.9,2014.8,50.035]
[1742999380289,4.42622,2015.0,2014.6,4.067]
[1742999380503,0.99248,2014.7,2014.6,4.067]
[1742999381293,2.36188,2014.7,2014.6,4.067]
[1742999381992,0.99253,2014.6,2014.4,40.8]
[1742999382295,1.3694,2014.7,2014.4,44.867]
[1742999382296,2.36198,2014.5,2014.4,44.867]
[1742999382995,1.3694,2014.5,2014.4,45.85963]
[1742999383389,0.9998338,2014.9,2014.4,50.55637]
[1742999383597,1.4252,2014.8,2014.7,0.99248]
[1742999383891,0.0074438,2014.9,2014.8,0.99243]
[1742999384286,0.0074438,2014.9,2014.7,7.2748]
[1742999384498,0.99243,2014.8,2014.7,7.2748]
[1742999385594,2.4250338,2014.9,2014.7,8.26728]
[1742999385992,2.4250338,2014.9,2014.7,7.2748]
[1742999385993,1.4326438,2014.9,2014.7,7.2748]
[1742999386193,1.4326438,2014.9,2014.8,0.99243]
[1742999386391,0.0074438,2014.9,2014.8,0.99243]
[1742999387097,1.3293438,2014.9,2014.8,0.99243]
[1742999387799,4.5614686,2015.0,2014.9,0.99238]
[1742999388290,4.5614686,2015.0,2014.9,3.49238]
[1742999390190,4.5614686,2015.0,2014.9,0.99238]
[1742999391096,4.5614686,2015.0,2014.9,3.49238]
[1742999391297,0.0074438,2015.2,2015.1,0.99228]
[1742999391491,1.4134,2015.6,2015.5,0.99209]
[1742999391691,1.4134,2015.6,2015.5,5.05809]
[1742999393792,0.0074438,2015.8,2015.7,0.99199]
[1742999393990,0.0074438,2015.8,2015.7,4.19979]
[1742999398003,3.8e-06,2015.8,2015.7,4.19979]
[1742999398205,3.8e-06,2015.8,2015.7,6.69979]
[1742999398598,3.8e-06,2015.8,2015.7,47.49979]
[1742999398999,3.8e-06,2015.8,2015.7,44.99979]
[1742999399298,3.8e-06,2015.8,2015.7,47.49979]
[1742999400103,1.3588,2016.3,2015.7,48.02519]
[1742999400306,0.9269,2016.7,2015.7,48.02519]
[1742999400307,0.9269,2016.7,2016.6,0.99155]
[1742999400601,1.9184,2016.7,2016.6,4.064]
[1742999400795,4.4184,2016.7,2016.6,4.064]
[1742999400997,0.99174,2016.2,2016.1,50.021]
[1742999401609,0.99174,2016.2,2015.9,0.0074438]
[1742999401610,0.99184,2016.0,2015.9,0.0074438]
[1742999401799,4.19964,2016.0,2015.9,0.0074438]
[1742999402001,2.3581,2016.1,2016.0,0.99184]
[1742999402201,0.99184,2016.0,2015.9,0.0074438]
[1742999402396,1.4035,2016.0,2015.9,0.9993338]
[1742999403312,0.0074438,2016.4,2016.3,0.99169]
[1742999403511,0.0074438,2016.4,2016.3,5.05469]
[1742999404407,3.2078,2017.0,2016.3,5.05469]
[1742999404408,1.3839,2017.0,2016.9,0.9914]
[1742999404607,1.3839,2017.0,2016.9,5.0544]
[1742999405006,1.3839,2017.0,2016.9,45.8544]
[1742999405212,0.8937,2017.4,2017.0,2.47838]
[1742999405400,0.0074438,2017.2,2017.1,0.99128]
[1742999405607,0.0074438,2017.2,2017.1,0.9913]
[1742999406909,0.0074438,2017.2,2017.0,4.6255438]
[1742999407114,0.0074438,2017.2,2017.1,5.0523]
[1742999407814,0.0074438,2017.2,2017.1,4.061]
[1742999408113,0.0074438,2017.2,2017.1,7.5523]
[1742999408310,4.143,2018.0,2017.9,0.99091]
[1742999408510,4.143,2018.0,2017.8,5.05192]
[1742999408707,3.2078,2018.0,2017.8,4.061]
[1742999408910,2.47727,2017.9,2017.4,40.8]
[1742999409103,4.19883,2017.7,2017.5,0.99107]
[1742999409306,4.19883,2017.7,2017.3,4.06]
[1742999409307,3.2078,2017.7,2017.3,4.06]
[1742999409510,3.2078,2017.4,2017.3,5.0512]
[1742999409707,5.5197438,2017.8,2017.7,0.991]
[1742999409914,4.6230438,2017.8,2017.7,0.991]
[1742999410118,0.0074438,2017.8,2017.7,5.051]
[1742999410817,0.0074438,2017.8,2017.7,10.7588]
[1742999410818,3.8e-06,2017.8,2017.7,10.7588]
[1742999411018,3.2078,2018.5,2018.4,0.99066]
[1742999411313,1.2921,2018.4,2018.3,0.99071]
[1742999411512,1.2921,2018.4,2017.9,50.002]
[1742999411716,2.47703,2018.1,2017.6,0.99104]
[1742999411915,3.2078,2017.9,2017.6,4.059]
[1742999412110,1.2921,2017.8,2017.7,0.991]
[1742999412312,1.2921,2017.8,2017.6,4.059]
[1742999412817,1.2921,2017.8,2017.7,0.991]
[1742999413313,0.0074438,2018.0,2017.9,0.99091]
[1742999413910,0.0074438,2018.0,2017.9,4.059]
[1742999414106,0.99098,2017.8,2017.6,5.05001]
[1742999414319,0.99108,2017.6,2017.3,0.0074438]
[1742999414512,1.374,2017.5,2017.4,0.99111]
[1742999415111,4.2061238,2018.0,2017.4,2.47785]
[1742999415317,2.36497,2017.8,2017.3,2.9248538]
[1742999415506,1.374,2017.8,2017.7,0.991]
[1742999415912,0.0074438,2018.0,2017.9,0.99091]
[1742999416322,0.0074438,2018.0,2017.9,3.49091]
[1742999416323,3.8e-06,2018.0,2017.9,3.49091]
[1742999416515,3.8e-06,2018.0,2017.9,1.43031]
[1742999416914,3.8e-06,2018.0,2017.9,44.73031]
[1742999417716,3.8e-06,2018.0,2017.9,42.23031]
[1742999417922,3.8e-06,2018.0,2017.9,41.79091]
[1742999418118,3.8e-06,2018.0,2017.9,5.04791]
[1742999418319,3.8e-06,2018.0,2017.9,0.99091]
[1742999418521,1.3016038,2018.0,2017.9,5.04791]
[1742999419024,2.2924638,2018.0,2017.9,4.057]
[1742999419225,1.3016038,2018.0,2017.3,2.4854338]
[1742999419517,0.99102,2017.7,2017.4,4.057]
[1742999419719,2.39465,2017.6,2017.5,0.99109]
[1742999419924,2.39468,2017.6,2017.5,0.9911]
[1742999420125,2.47776,2017.5,2017.2,49.99]
[1742999420317,0.99125,2017.2,2017.0,4.057]
[1742999420516,5.68583,2017.3,2017.0,4.057]
[1742999420725,0.9913,2017.1,2017.0,4.057]
[1742999420913,0.9913,2017.1,2016.7,4.057]
[1742999420914,2.47842,2017.0,2016.7,4.057]
[1742999421116,4.19924,2016.9,2016.8,0.99145]
[1742999421318,0.99145,2016.8,2016.7,5.04847]
[1742999421525,4.19925,2016.9,2016.8,0.99145]
[1742999421825,4.19925,2016.9,2016.7,5.04847]
[1742999421826,0.99145,2016.8,2016.7,5.04847]
[1742999422022,0.0074438,2017.1,2016.8,0.99145]
[1742999422226,0.0074438,2017.1,2016.7,4.4962]
[1742999422416,0.0074438,2017.1,2017.0,0.99135]
[1742999422614,0.99136,2017.0,2016.7,6.97493]
[1742999422818,0.0074438,2017.1,2016.9,0.99138]
[1742999423020,0.0074438,2017.1,2017.0,0.99135]
[1742999424125,0.99135,2017.0,2016.9,0.9914]
[1742999424524,0.9915,2016.7,2016.6,5.0559738]
[1742999424724,4.1993,2016.7,2016.6,4.0644438]
[1742999425022,0.99159,2016.5,2016.4,48.975]
[1742999425227,0.99164,2016.4,2016.3,5.04869]
[1742999425522,6.45324,2016.4,2016.3,5.04869]
[1742999425828,0.99169,2016.3,2016.2,45.84874]
[1742999426013,2.35869,2016.3,2016.2,44.857]
[1742999426218,3.28429,2016.3,2016.2,44.857]
[1742999426422,3.28429,2016.3,2016.2,40.8]
[1742999426719,3.28429,2016.3,2016.2,0.99174]
[1742999427116,3.28429,2016.3,2016.2,41.79174]
[1742999427516,3.28429,2016.3,2016.2,40.8]
[1742999427829,3.28429,2016.3,2016.2,0.99174]
[1742999427830,2.2926,2016.3,2016.2,0.99174]
[1742999428015,1.367,2016.3,2016.2,0.99174]
[1742999428218,2.6509124,2016.4,2016.3,0.99169]
[1742999428424,2.6509124,2016.4,2016.3,2.29769]
[1742999428631,2.6509124,2016.4,2016.2,40.8]
[1742999428827,0.99169,2016.3,2016.1,0.0074438]
[1742999429218,0.99174,2016.2,2016.1,0.0074438]
[1742999430224,2.47976,2015.9,2015.4,4.19992]
[1742999430422,3.2078,2015.7,2015.5,1.336]
[1742999430621,2.4801,2015.6,2015.0,49.993]
[1742999430824,0.99228,2015.1,2015.0,54.051]
[1742999431019,5.68815,2015.4,2015.0,54.051]
[1742999431221,0.99228,2015.1,2015.0,54.051]
[1742999431424,0.99228,2015.1,2015.0,54.0584438]
[1742999431823,4.20008,2015.1,2015.0,54.0584438]
[1742999432630,4.20008,2015.1,2015.0,0.0074438]
[1742999432828,0.99243,2014.8,2014.7,4.058]
[1742999433737,0.99253,2014.6,2014.5,1.3073]
[1742999434041,0.99253,2014.6,2014.3,0.0074438]
[1742999434042,0.99263,2014.4,2014.3,0.0074438]
[1742999434337,0.99263,2014.4,2014.3,4.0664438]
[1742999434731,2.33333,2014.4,2014.3,4.0664438]
[1742999435327,2.33333,2014.4,2014.3,0.0074438]
[1742999436129,3.26103,2014.4,2014.3,0.0074438]
[1742999437141,0.99283,2014.0,2013.9,4.06]
[1742999438036,4.20053,2014.2,2014.0,0.99283]
[1742999438235,4.2079738,2014.2,2014.1,1.3835]
[1742999438433,3.2152438,2014.2,2014.1,1.3835]
[1742999438740,4.2079738,2014.2,2014.1,1.3835]
[1742999439746,0.99295,2013.8,2013.5,51.89363]
[1742999439940,0.99297,2013.7,2013.6,5.4435]
[1742999440243,0.99297,2013.7,2013.6,4.06]
[1742999441743,0.99302,2013.6,2013.5,54.081]
[1742999441938,3.2078,2013.6,2013.5,54.081]
[1742999442743,4.20082,2013.6,2013.5,54.081]
[1742999442932,4.20082,2013.6,2013.5,4.06]
[1742999443137,3.2078,2013.6,2013.4,0.99312]
[1742999443443,3.2078,2013.6,2013.3,5.4445]
[1742999443639,4.20082,2013.6,2013.4,1.4059]
[1742999443843,3.2078,2013.6,2013.4,1.4059]
[1742999444044,3.2078,2013.6,2013.4,2.39902]
[1742999444445,3.2078,2013.6,2013.4,2.399]
[1742999444838,4.5882,2013.6,2013.4,6.46]
[1742999445033,4.5882,2013.6,2013.4,5.4669]
[1742999445247,4.5882,2013.6,2013.4,1.4059]
[1742999445543,5.58125,2013.6,2013.4,5.4669]
[1742999445738,4.5882,2013.6,2013.4,5.4669]
[1742999445940,4.5882,2013.6,2013.5,0.99307]
[1742999446242,4.20064,2014.0,2013.5,2.37987]
[1742999446445,0.99287,2013.9,2013.6,40.8]
[1742999446637,0.99292,2013.8,2013.7,1.3868]
[1742999446834,0.99297,2013.7,2013.6,40.8]
[1742999447038,5.58117,2013.7,2013.6,40.8]
[1742999447246,3.2078,2013.7,2013.6,41.79302]
[1742999448145,1.4281,2013.9,2013.6,40.8]
[1742999448347,4.20073,2013.8,2013.7,1.3688]
[1742999448745,3.2078,2013.8,2013.7,2.36177]
[1742999448948,0.99285,2014.0,2013.7,2.36177]
[1742999449136,0.99287,2013.9,2013.8,4.061]
[1742999450250,0.99287,2013.9,2013.8,5.05392]
[1742999450748,0.99287,2013.9,2013.8,4.061]
[1742999451347,0.99287,2013.9,2013.7,2.36175]
[1742999451348,1.4281,2014.0,2013.5,2.48264]
[1742999451544,1.2935,2013.8,2013.7,4.061]
[1742999451749,2.28642,2013.8,2013.5,1.3352]
[1742999451947,2.28642,2013.8,2013.7,4.061]
[1742999452342,2.28642,2013.8,2013.7,5.05397]
[1742999452543,3.2078,2013.9,2013.8,0.99292]
[1742999452848,3.2078,2013.9,2013.8,2.32812]
[1742999453051,0.0074438,2014.2,2013.8,3.81752]
[1742999453250,0.0074438,2014.2,2014.1,0.99278]
[1742999453443,0.0074438,2014.2,2014.1,5.05378]
[1742999454054,0.0074438,2014.2,2014.1,6.39308]
[1742999454552,1.0001738,2014.2,2014.1,6.39308]
[1742999454750,0.0074438,2014.2,2013.7,50.062]
[1742999455054,0.99283,2014.0,2013.9,0.99284]
[1742999455254,5.54881,2014.1,2014.0,0.99283]
[1742999455457,4.20061,2014.1,2013.9,2.33214]
[1742999455650,3.2078,2014.1,2013.9,1.3393]
[1742999455842,4.20061,2014.1,2013.9,2.33217]
[1742999456046,4.20061,2014.1,2013.9,2.33213]
[1742999456247,0.99283,2014.0,2013.9,1.3393]
[1742999456447,0.99287,2013.9,2013.8,4.061]
[1742999456647,0.99284,2014.0,2013.9,0.99287]
[1742999456843,5.1417,2014.1,2013.9,1.2965]
[1742999457054,0.99283,2014.0,2013.9,2.28935]
[1742999457253,0.99287,2013.9,2013.8,4.061]
[1742999457446,0.99297,2013.7,2013.6,1.2965]
[1742999457753,0.99301,2013.7,2013.5,0.99303]
[1742999457955,0.99301,2013.7,2013.4,5.3575]
[1742999458145,3.2078,2013.8,2013.5,2.48269]
[1742999458341,3.2078,2013.8,2013.7,0.99297]
[1742999458950,3.2152438,2014.2,2014.1,0.99278]
[1742999459655,3.2152438,2014.2,2014.1,2.37928]
[1742999460760,0.0074438,2014.2,2014.1,2.37928]
[1742999461348,3.8e-06,2014.2,2014.1,8.08708]
[1742999461556,1.9852,2014.9,2014.8,0.99243]
[1742999461750,1.9852,2014.9,2014.8,5.05343]
[1742999461955,0.96938,2014.9,2014.8,7.55343]
[1742999462155,3.2078,2015.7,2015.6,0.99204]
[1742999462454,0.99224,2015.2,2014.9,4.6394]
[1742999462660,3.2078,2015.3,2014.9,1.4316]
[1742999462966,3.2078,2015.3,2015.2,0.99223]
[1742999463352,4.1561,2015.6,2015.5,0.99209]
[1742999463659,6.63621,2015.6,2014.9,3.2078]
[1742999463959,0.99238,2014.9,2014.8,0.0074438]
[1742999464152,2.4811,2014.8,2014.4,4.06]
[1742999464355,0.99258,2014.5,2014.4,4.06]
[1742999464649,0.99258,2014.5,2013.8,2.98496]
[1742999464650,2.48151,2014.5,2013.6,5.69027]
[1742999464850,3.2078,2014.1,2013.7,5.4916]
[1742999465452,3.2078,2014.1,2013.8,0.9929]
[1742999465453,0.99286,2014.0,2013.8,0.9929]
[1742999465955,3.2078,2014.1,2014.0,0.99283]
[1742999466151,0.0074438,2014.1,2014.0,0.99283]
[1742999466459,0.0074438,2014.1,2014.0,3.49283]
[1742999466654,0.0074438,2014.1,2014.0,3.99493]
[1742999466957,0.0074438,2014.1,2014.0,0.99283]
[1742999467456,1.0002638,2014.1,2013.5,2.48258]
[1742999467659,1.0002338,2014.1,2013.6,7.91665]
[1742999467856,0.0074438,2014.1,2013.7,2.36705]
[1742999468052,0.99286,2014.0,2013.8,0.99292]
[1742999468253,4.2080438,2014.1,2013.9,0.99285]
[1742999468451,0.99283,2014.0,2013.8,0.99288]
[1742999468654,5.6972038,2014.1,2013.7,1.3741]
[1742999468875,0.9378,2014.0,2013.7,2.36707]
[1742999469164,3.2152438,2014.1,2013.7,1.3741]
[1742999469358,0.99292,2013.8,2013.7,1.3741]
[1742999469549,2.3999,2013.9,2013.7,1.3741]
[1742999469755,0.99298,2013.7,2013.5,0.99304]
[1742999469951,3.2078,2013.8,2013.4,1.3143]
[1742999470159,2.40002,2013.6,2013.5,4.059]
[1742999470556,1.407,2013.6,2013.5,5.05207]
[1742999470952,1.407,2013.6,2013.5,45.85207]
[1742999471353,2.40002,2013.6,2013.5,44.859]
[1742999471864,1.407,2013.6,2013.5,4.059]
[1742999472554,2.40002,2013.6,2013.5,4.059]
[1742999472757,4.6365,2013.8,2013.7,0.99297]
[1742999472950,3.2078,2013.8,2013.7,0.99297]
[1742999473558,4.6365,2013.8,2013.7,0.99297]
[1742999473758,4.6365,2013.8,2013.6,1.3338]
[1742999473959,4.6365,2013.8,2013.5,5.05203]
[1742999473960,4.6365,2013.8,2013.5,4.059]
[1742999474163,5.62945,2013.8,2013.6,0.99302]
[1742999474365,4.6365,2013.8,2013.7,0.99297]
[1742999474664,0.9378,2014.0,2013.6,1.4126]
[1742999474851,1.3854,2013.8,2013.6,1.4126]
[1742999475055,1.3854,2013.8,2013.7,0.99297]
[1742999475250,1.3854,2013.8,2013.3,94.0648]
[1742999475251,1.3854,2013.8,2013.3,90.857]
[1742999475451,5.69038,2013.6,2013.1,1.4126]
[1742999475660,0.99324,2013.2,2013.0,0.99332]
[1742999475864,1.3854,2013.1,2013.0,4.059]
[1742999476063,0.99332,2013.0,2012.8,42.2126]
[1742999476264,0.99332,2013.0,2012.7,50.065]
[1742999476265,1.3854,2013.1,2012.7,51.05846]
[1742999476567,3.2078,2013.0,2012.8,4.059]
[1742999476861,1.3928438,2013.1,2013.0,0.99332]
[1742999477058,1.3928438,2013.1,2012.9,2.40593]
[1742999477266,1.3928438,2013.1,2013.0,0.99332]
[1742999477457,1.3928438,2013.1,2013.0,1.3821]
[1742999477869,2.3861138,2013.1,2012.8,45.85238]
[1742999478167,1.3928438,2013.1,2012.9,0.99337]
[1742999478360,1.3928438,2013.1,2012.9,1.3821]
[1742999478667,1.3928438,2013.1,2013.0,0.99332]
[1742999478865,0.0074438,2013.1,2013.0,0.99332]
[1742999479167,0.0074438,2013.1,2013.0,3.49332]
[1742999479360,0.0074438,2013.1,2013.0,0.99332]
[1742999479559,0.0074438,2013.1,2013.0,6.43542]
[1742999481067,0.0074438,2013.1,2013.0,47.23542]
[1742999481469,1.2416,2013.5,2013.4,0.99312]
[1742999481666,1.2341562,2013.5,2013.4,8.25992]
[1742999482165,0.4966,2013.6,2013.5,0.99307]
[1742999482366,3.2078,2014.9,2014.5,0.99258]
[1742999482567,3.2078,2014.9,2014.5,5.05158]
[1742999482568,1.3121,2014.8,2014.5,5.05158]
[1742999482772,2.3119938,2014.8,2014.5,5.05153]
[1742999483069,2.3120138,2014.8,2014.5,5.05155]
[1742999483464,2.3120138,2014.8,2014.6,0.99253]
[1742999483664,1.3195438,2014.8,2014.5,5.05153]
[1742999483875,1.3195438,2014.8,2014.7,0.99248]
[1742999484169,0.0074438,2014.8,2014.7,0.99248]
[1742999484375,0.0074438,2014.8,2014.7,4.20028]
[1742999484967,0.0074438,2014.8,2014.7,8.25928]
[1742999485273,0.0074438,2014.8,2014.7,0.99248]
[1742999485662,0.0074438,2014.8,2014.7,5.05048]
[1742999485862,0.0074438,2014.8,2014.7,0.99248]
[1742999486063,0.0074438,2014.8,2014.5,1.3512]
[1742999486273,0.0074438,2014.8,2014.7,0.99248]
[1742999486675,1.3920438,2014.8,2014.7,2.31938]
[1742999486871,2.3844938,2014.8,2014.6,4.058]
[1742999487067,1.3920438,2014.8,2014.7,0.99248]
[1742999487262,1.3920438,2014.8,2014.6,4.058]
[1742999487775,1.3920438,2014.8,2014.7,0.99248]
[1742999487965,2.3844738,2014.8,2014.6,5.05049]
[1742999488167,1.3920438,2014.8,2014.7,0.99248]
[1742999488362,0.0074438,2014.8,2014.7,2.31938]
[1742999488576,0.0074438,2014.8,2014.7,8.02718]
[1742999488770,1.2406,2015.1,2015.0,0.99233]
[1742999488970,3.2843,2015.2,2015.1,0.99228]
[1742999488971,1.75287,2015.2,2015.1,0.99228]
[1742999489271,4.4481,2015.6,2015.5,0.99209]
[1742999489272,0.10023,2015.6,2015.5,0.99209]
[1742999489477,0.10023,2015.6,2015.5,8.25689]
[1742999489672,20.1260307,2016.3,2015.7,2.4799]
[1742999489877,20.1260307,2016.3,2016.2,0.99174]
[1742999490074,20.1260307,2016.3,2016.2,4.057]
[1742999490272,20.1260307,2016.3,2016.2,5.04874]
[1742999490970,20.1260307,2016.3,2016.1,44.0078]
[1742999491169,1.4076,2016.2,2016.1,3.2078]
[1742999491373,1.4076,2016.2,2016.1,7.2648]
[1742999491574,1.4076,2016.2,2015.9,94.908]
[1742999491769,2.2989,2016.2,2015.8,0.0074438]
[1742999492076,0.99189,2015.9,2015.8,0.0074438]
[1742999492374,3.2078,2016.0,2015.8,0.0074438]
[1742999492780,1.3879,2016.1,2016.0,0.99184]
[1742999492975,1.3879,2016.1,2016.0,4.056]
[1742999493284,2.37969,2016.1,2016.0,4.056]
[1742999493580,2.37971,2016.1,2016.0,4.056]
[1742999494180,0.99189,2015.9,2015.8,4.0634438]
[1742999494978,0.99188,2016.0,2015.8,4.0634438]
[1742999495282,2.37979,2015.9,2015.8,4.0634438]
[1742999495678,2.37979,2015.9,2015.8,0.0074438]
[1742999495884,1.3879,2015.9,2015.6,0.99202]
[1742999496078,1.3879,2015.9,2015.3,5.3947]
[1742999496279,0.99197,2015.8,2015.5,0.99206]
[1742999496474,3.2078,2016.0,2015.5,0.99207]
[1742999496475,2.35669,2015.7,2015.5,0.99207]
[1742999496884,0.99204,2015.6,2015.4,0.99209]
[1742999497084,1.3647,2015.6,2015.5,2.33179]
[1742999497386,4.19965,2016.0,2015.8,0.99192]
[1742999497582,4.19965,2016.0,2015.9,4.055]
[1742999499187,4.19965,2016.0,2015.9,5.04689]
[1742999499387,3.2078,2016.3,2016.2,0.99173]
[1742999499579,3.2078,2016.3,2016.0,1.3823]
[1742999499779,0.99202,2015.7,2015.3,3.2078]
[1742999499993,0.99204,2015.6,2015.5,4.054]
[1742999500182,0.99197,2015.8,2015.7,0.99199]
[1742999500484,0.99192,2015.9,2015.7,0.99199]
[1742999500788,3.2078,2016.0,2015.6,1.3823]
[1742999500984,0.99197,2015.8,2015.6,2.37434]
[1742999501292,0.99199,2015.7,2015.6,2.37434]
[1742999501498,0.99198,2015.8,2015.6,2.37434]
[1742999501991,0.99199,2015.7,2015.6,1.3823]
[1742999502187,3.2078,2016.0,2015.6,2.37434]
[1742999502387,0.99197,2015.8,2015.7,4.054]
[1742999502790,2.47976,2015.9,2015.4,0.0074438]
[1742999503093,0.99204,2015.6,2015.5,4.054]
[1742999503494,3.2078,2015.7,2015.5,4.054]
[1742999503790,3.2078,2015.7,2015.4,0.0074438]
[1742999503791,0.99209,2015.5,2015.4,0.0074438]
[1742999504190,0.99218,2015.3,2015.2,4.053]
[1742999504383,4.19998,2015.3,2015.2,4.053]
[1742999504790,5.68833,2015.3,2014.9,4.053]
[1742999504994,0.99233,2015.0,2014.9,4.053]
[1742999505190,5.68833,2015.3,2014.9,4.053]
[1742999505390,0.99233,2015.0,2014.9,44.853]
[1742999505592,4.20013,2015.0,2014.9,40.8]
[1742999505787,0.99255,2014.6,2014.5,4.053]
[1742999505988,0.99253,2014.7,2014.5,5.04554]
[1742999506192,4.20028,2014.7,2014.6,42.1122]
[1742999506394,0.99258,2014.5,2014.4,54.078]
[1742999506894,0.99258,2014.5,2014.4,94.878]
[1742999507197,0.99258,2014.5,2014.4,44.853]
[1742999507398,0.8828,2014.6,2014.1,1.3122]
[1742999507597,0.99273,2014.2,2014.1,4.053]
[1742999507897,3.2078,2014.4,2014.1,4.053]
[1742999508100,4.20046,2014.4,2014.1,4.053]
[1742999508296,3.2078,2014.4,2014.2,1.4016]
[1742999508489,0.8856,2014.9,2014.3,2.4817]
[1742999508693,3.2078,2015.1,2014.6,2.48133]
[1742999508893,3.2078,2015.1,2014.7,5.4556]
[1742999509091,2.28736,2015.0,2014.7,5.4556]
[1742999509295,0.99239,2014.9,2014.7,6.44804]
[1742999509496,0.99243,2014.8,2014.7,1.4016]
[1742999509695,1.295,2015.0,2014.3,1.4563]
[1742999509696,2.48104,2014.9,2014.3,0.9633]
[1742999509895,2.28744,2014.8,2014.6,0.9925]
[1742999510095,2.28744,2014.8,2014.6,0.99252]
[1742999510296,2.28744,2014.8,2014.4,5.4546]